bitfinex-derivatives/quotes_ETHF0:USTF0_20241020
["timestamp","ask_amount","ask_price","bid_price","bid_amount"]
[1729467429131,46.22023272,2748.7,2748.6,1.17359545]
[1729467429434,44.4384,2748.7,2748.5,0.32705289]
[1729467429644,5.42504705,2748.6,2748.5,0.32705289]
[1729467429939,4.00227,2748.6,2748.5,0.32705289]
[1729467430139,5.42464855,2748.6,2748.5,0.32705289]
[1729467430336,5.42477038,2748.6,2748.5,0.32705289]
[1729467430932,46.22477038,2748.6,2748.5,0.32705289]
[1729467431351,44.80227,2748.6,2748.5,0.32705289]
[1729467431649,0.3639,2748.4,2748.3,1.4323361]
[1729467431842,3.5717,2748.4,2748.3,1.16945118]
[1729467432043,8.63242439,2748.4,2748.3,1.16945118]
[1729467432649,49.84062439,2748.4,2748.3,1.16945118]
[1729467433543,49.84062439,2748.4,2748.2,1.4323361]
[1729467433743,46.20222439,2748.4,2748.3,1.1695616]
[1729467434048,47.6462,2748.4,2748.3,1.1695616]
[1729467434250,48.0101,2748.4,2748.3,1.1695616]
[1729467434741,48.0101,2748.4,2748.3,2.6018977]
[1729467434742,48.3912,2748.4,2748.3,2.6018977]
[1729467435339,48.3912,2748.4,2748.3,1.1695616]
[1729467435539,44.0078,2748.4,2748.3,1.1695616]
[1729467435735,44.0078,2748.4,2748.3,2.6018977]
[1729467435941,44.0078,2748.4,2748.3,3.0116977]
[1729467436343,3.2078,2748.4,2748.3,3.01164929]
[1729467436548,3.2078,2748.4,2748.3,6.19187523]
[1729467437745,3.2078,2748.4,2748.3,5.82796523]
[1729467438051,44.0078,2748.7,2748.3,6.19174268]
[1729467438244,44.0078,2748.7,2748.5,1.43214672]
[1729467439051,45.43012439,2748.7,2748.5,1.43214672]
[1729467439250,44.0078,2748.7,2748.5,1.43214672]
[1729467440240,3.2078,2748.7,2748.6,0.36387]
[1729467441536,3.2078,2748.7,2748.5,0.36387]
[1729467442144,3.2078,2748.7,2748.4,0.3977]
[1729467442340,3.2078,2748.7,2748.4,0.76159]
[1729467442743,3.2078,2748.7,2748.4,0.3977]
[1729467442946,3.2078,2748.7,2748.6,0.36387]
[1729467444350,3.2078,2748.7,2748.5,0.36388]
[1729467445654,3.2078,2748.7,2748.6,0.36387]
[1729467446655,5.57442081,2748.7,2748.6,0.36387]
[1729467446953,2.36662081,2748.8,2748.4,0.3977]
[1729467447155,2.36662081,2748.8,2748.7,0.36386]
[1729467447942,2.36662081,2748.8,2748.4,0.3977]
[1729467448158,2.36662081,2748.7,2748.4,0.3977]
[1729467448360,1.89329093,2748.5,2748.4,0.7616]
[1729467448944,1.89329093,2748.5,2748.4,4.4]
[1729467449759,1.89278706,2748.5,2748.4,4.4]
[1729467450558,1.89278706,2748.6,2748.5,0.36388]
[1729467450956,1.89278706,2748.6,2748.5,4.00228]
[1729467452356,1.89278706,2748.6,2748.5,0.36388]
[1729467452755,1.89278706,2748.7,2748.6,0.36387]
[1729467453161,2.36662081,2748.8,2748.6,0.36387]
[1729467453456,5.57442081,2748.9,2748.4,0.3977]
[1729467453662,1.41883315,2748.5,2748.4,0.7616]
[1729467454157,1.41883315,2748.5,2748.4,4.4]
[1729467455254,1.41883315,2748.5,2748.4,0.7616]
[1729467455559,1.89244134,2748.6,2748.5,0.36388]
[1729467456253,2.36662081,2748.7,2748.4,0.3977]
[1729467456454,2.36662081,2748.7,2748.6,0.36387]
[1729467456654,2.36662081,2748.7,2748.4,0.3977]
[1729467456853,1.89359315,2748.5,2748.4,0.7616]
[1729467457969,1.89359315,2748.5,2748.4,4.4]
[1729467459259,1.89359315,2748.5,2748.4,0.7616]
[1729467459556,0.36388,2748.5,2748.4,0.3977]
[1729467459762,0.3639,2748.4,2748.3,0.4098]
[1729467459966,0.7558,2748.4,2748.3,0.4098]
[1729467460355,0.3919,2748.4,2748.3,0.4098]
[1729467460557,2.75852081,2748.4,2748.3,0.4098]
[1729467460763,0.3919,2748.4,2748.3,0.4098]
[1729467460959,2.75852081,2748.4,2748.3,0.4098]
[1729467461359,2.75852081,2748.4,2748.3,0.77371]
[1729467461559,0.3919,2748.4,2748.3,0.77371]
[1729467461965,2.75852081,2748.4,2748.3,0.77371]
[1729467462167,0.3919,2748.4,2748.3,0.77371]
[1729467462560,2.75852081,2748.4,2748.3,0.77371]
[1729467463066,0.3919,2748.4,2748.3,0.77371]
[1729467465171,0.3919,2748.4,2748.2,0.4108]
[1729467465372,1.89479375,2748.3,2748.0,0.7575]
[1729467465671,1.42109812,2748.2,2748.1,0.36394]
[1729467468367,1.42109812,2748.2,2748.1,4.00314]
[1729467468564,1.42109812,2748.5,2748.1,3.75302124]
[1729467468869,1.42109812,2748.7,2748.6,0.36387]
[1729467469171,1.42109812,2748.7,2748.1,1.43174363]
[1729467469172,1.42109812,2748.7,2748.5,0.36388]
[1729467469358,2.70379375,2748.6,2748.1,0.4166]
[1729467469565,1.42137401,2748.3,2748.1,0.78053]
[1729467469761,0.4129,2748.2,2748.1,0.78053]
[1729467469961,1.83427401,2748.2,2748.0,3.57175]
[1729467470184,2.16651401,2748.1,2747.9,0.36396]
[1729467470364,2.63993375,2748.1,2747.9,0.36396]
[1729467470669,2.63993375,2748.1,2747.7,0.4166]
[1729467470670,1.89479375,2748.0,2747.7,0.4166]
[1729467470869,0.3812,2748.1,2747.0,1.43174363]
[1729467470870,0.36401,2747.6,2747.0,1.43174363]
[1729467471077,1.83389701,2747.5,2747.1,0.53046138]
[1729467471264,1.83389701,2747.5,2747.1,0.4166]
[1729467471462,1.83389701,2747.5,2747.3,0.36403]
[1729467471876,1.83389701,2747.5,2747.1,0.4166]
[1729467472177,1.83389701,2747.5,2747.4,0.36403]
[1729467472775,1.83389701,2747.5,2747.1,0.4166]
[1729467472979,1.83389701,2747.5,2747.3,0.36403]
[1729467473270,0.4129,2747.5,2747.3,0.36403]
[1729467473863,0.4129,2747.5,2747.4,0.36403]
[1729467474075,0.4129,2747.5,2747.3,0.36404]
[1729467474371,0.4129,2747.5,2747.4,0.36403]
[1729467474973,0.7901,2747.5,2747.4,0.36403]
[1729467475967,0.7901,2747.5,2747.3,0.36404]
[1729467476973,0.7901,2747.5,2747.2,0.36405]
[1729467476974,0.36403,2747.4,2747.2,0.36405]
[1729467477474,3.9979,2747.5,2747.2,0.36405]
[1729467477475,4.36192,2747.5,2747.2,0.36405]
[1729467478284,3.9979,2747.5,2747.1,0.4166]
[1729467478775,4.36193,2747.5,2747.2,0.36405]
[1729467479680,1.15413,2747.5,2747.2,0.36405]
[1729467479885,4.36193,2747.5,2747.2,0.36405]
[1729467480185,4.36193,2747.5,2747.3,0.36404]
[1729467480186,3.9979,2747.5,2747.3,0.36404]
[1729467480384,3.9979,2747.5,2747.4,0.36403]
[1729467480884,3.6207,2747.5,2747.4,0.36403]
[1729467481579,3.2078,2747.5,2747.4,0.36403]
[1729467486381,3.6107,2747.7,2747.5,0.36401]
[1729467487882,3.2078,2747.7,2747.6,0.364]
[1729467488083,45.34391,2748.3,2747.2,0.91015]
[1729467488084,1.42099701,2748.1,2747.4,3.2078]
[1729467488282,5.39449701,2748.2,2747.9,0.36396]
[1729467488481,5.39449701,2748.2,2747.5,1.1666]
[1729467488688,5.75842701,2748.2,2747.8,0.36398]
[1729467489294,1.42099701,2748.1,2747.8,0.36398]
[1729467490378,1.42099701,2748.0,2747.8,0.36398]
[1729467490782,1.42099701,2748.1,2747.6,0.364]
[1729467490985,1.42099701,2748.1,2747.8,0.36397]
[1729467491888,1.42099701,2748.0,2747.8,0.36397]
[1729467492091,1.42099701,2748.1,2747.9,0.36395]
[1729467492285,1.42099701,2748.1,2747.5,1.1666]
[1729467492486,1.42099701,2748.0,2747.7,0.36398]
[1729467492698,0.3997,2747.9,2747.7,0.36398]
[1729467492891,1.82069701,2747.9,2747.8,0.36398]
[1729467493393,5.45989701,2747.9,2747.8,0.36398]
[1729467493590,4.0389,2747.9,2747.8,0.36398]
[1729467495081,4.0389,2747.9,2747.6,0.364]
[1729467495289,5.02849701,2747.9,2747.8,0.36398]
[1729467495488,8.66769701,2747.9,2747.8,0.36398]
[1729467495698,8.66769701,2747.9,2747.5,1.1666]
[1729467495699,7.2467,2747.9,2747.5,1.1666]
[1729467496001,3.6075,2747.9,2747.7,0.36398]
[1729467496188,3.2078,2747.9,2747.5,1.1666]
[1729467496385,3.2078,2747.9,2747.7,0.36399]
[1729467496587,0.3908,2747.8,2747.7,0.36399]
[1729467496792,0.3908,2747.8,2747.6,0.364]
[1729467497091,0.3908,2747.8,2747.5,1.1666]
[1729467497293,0.3908,2747.8,2747.7,0.36399]
[1729467498292,0.3908,2747.8,2747.6,0.36399]
[1729467498797,0.3908,2747.8,2747.5,1.53061]
[1729467498798,1.81179701,2747.8,2747.5,1.53061]
[1729467498997,0.4164,2747.7,2747.5,1.53061]
[1729467499492,1.83739701,2747.7,2747.5,1.53061]
[1729467499889,1.83739701,2747.7,2747.6,0.364]
[1729467500485,1.83739701,2747.7,2746.2,3.34073514]
[1729467500486,5.95026268,2747.7,2746.2,3.34073514]
[1729467500687,1.41834782,2747.2,2746.8,0.3641]
[1729467500900,2.25518043,2747.3,2746.9,0.77659]
[1729467500901,4.62614782,2747.1,2746.9,0.77659]
[1729467501990,4.62614782,2747.1,2746.9,0.4125]
[1729467502403,5.00754782,2747.1,2746.9,0.4125]
[1729467504697,5.00754782,2747.1,2746.9,0.77659]
[1729467504893,5.00754782,2747.1,2746.9,0.4125]
[1729467505103,45.80754782,2747.1,2746.9,0.4125]
[1729467505797,45.80754782,2747.1,2746.8,0.36411]
[1729467505798,46.17161782,2747.1,2746.7,1.17992]
[1729467506001,45.80754782,2747.1,2746.8,0.36411]
[1729467506395,1.41834782,2747.0,2746.8,0.36411]
[1729467506594,45.80754782,2747.1,2746.8,0.36411]
[1729467506789,1.41834782,2747.0,2746.8,0.36411]
[1729467506990,5.00754782,2747.1,2746.9,0.3641]
[1729467507195,5.00754782,2747.1,2746.7,0.8158]
[1729467507393,5.00754782,2747.1,2746.8,0.3641]
[1729467507598,5.00754782,2747.1,2746.7,1.17992]
[1729467507896,1.41834782,2747.0,2746.7,1.17992]
[1729467508602,5.37161782,2747.1,2746.7,1.17992]
[1729467508799,4.62614782,2747.1,2746.8,0.3641]
[1729467509200,4.62614782,2747.1,2746.9,0.393]
[1729467510002,1.41834782,2747.0,2746.9,0.393]
[1729467510308,5.00994782,2747.1,2746.9,0.393]
[1729467510905,5.00994782,2747.1,2746.7,0.8158]
[1729467511096,5.37402782,2747.1,2746.7,0.8158]
[1729467511508,5.37402782,2747.1,2746.7,0.4052]
[1729467511704,4.62614782,2747.1,2746.7,0.4052]
[1729467511999,4.62614782,2747.1,2746.8,0.3641]
[1729467512407,4.62614782,2747.1,2746.9,0.3973]
[1729467512595,1.41834782,2747.0,2746.9,0.3973]
[1729467512803,3.2078,2747.1,2746.9,0.3973]
[1729467512804,4.62614782,2747.1,2746.9,0.3973]
[1729467513206,1.41834782,2747.0,2746.9,0.3973]
[1729467515221,5.09893043,2747.1,2746.9,0.3973]
[1729467515600,5.09893043,2747.1,2746.9,0.76139]
[1729467515601,3.2078,2747.0,2746.9,0.76139]
[1729467516214,1.89113043,2747.1,2747.0,0.36408]
[1729467517309,1.89113043,2747.1,2746.9,0.3973]
[1729467517508,1.41990891,2747.0,2746.9,0.7614]
[1729467517708,1.41990891,2747.2,2747.0,0.36408]
[1729467517905,0.79180891,2747.3,2747.2,0.36406]
[1729467518103,2.84145351,2748.0,2747.7,0.36399]
[1729467518104,1.89113043,2747.8,2747.7,0.36399]
[1729467518309,1.89113043,2747.9,2747.7,0.36399]
[1729467518609,1.89113043,2747.9,2747.8,0.4177]
[1729467519813,1.89113043,2748.0,2747.8,0.4177]
[1729467520014,1.89113043,2748.1,2747.9,0.36396]
[1729467520606,1.89113043,2748.1,2747.8,0.4177]
[1729467520807,5.09893043,2748.1,2747.8,0.4177]
[1729467521011,1.89113043,2748.0,2747.8,0.78168]
[1729467521404,1.89113043,2748.0,2747.8,0.4177]
[1729467521616,1.89113043,2748.0,2747.6,0.364]
[1729467521816,1.2285,2747.9,2747.6,0.364]
[1729467522111,5.09893043,2747.8,2747.2,0.3956]
[1729467522315,1.89113043,2747.6,2747.2,0.75966]
[1729467522511,1.89113043,2747.5,2747.0,3.2078]
[1729467522723,0.4122,2747.4,2747.2,0.36405]
[1729467524416,2.30333043,2747.4,2746.8,3.6034]
[1729467524612,0.383,2747.3,2746.8,3.6034]
[1729467524814,2.27413043,2747.3,2747.0,0.36408]
[1729467526616,2.27413043,2747.3,2746.9,0.36408]
[1729467526815,2.27413043,2747.3,2747.0,0.36407]
[1729467527009,2.27413043,2747.3,2746.8,3.6034]
[1729467527216,2.27413043,2747.3,2747.0,0.36408]
[1729467527426,2.27413043,2747.3,2746.9,0.36409]
[1729467527815,2.27413043,2747.3,2746.8,3.2078]
[1729467528013,2.27413043,2747.3,2747.0,0.36408]
[1729467528322,2.27413043,2747.3,2747.1,0.36407]
[1729467528509,2.27413043,2747.3,2746.8,3.2078]
[1729467528510,5.09893043,2747.2,2746.8,0.3641]
[1729467528919,41.1822,2747.1,2746.8,0.3641]
[1729467529424,41.1822,2747.1,2746.7,0.36411]
[1729467529425,0.3822,2747.1,2746.7,0.36411]
[1729467529620,0.3822,2747.1,2746.8,0.3641]
[1729467531026,0.3822,2747.1,2746.5,0.3917]
[1729467531426,0.3822,2747.1,2746.8,0.3641]
[1729467532423,0.3822,2747.1,2746.5,0.3917]
[1729467532424,0.3822,2747.1,2746.7,0.36412]
[1729467532817,0.3822,2747.1,2746.8,0.3641]
[1729467533622,0.3822,2747.1,2746.7,0.36412]
[1729467533829,3.2078,2746.9,2746.8,0.36411]
[1729467534018,2.27333043,2747.1,2746.8,0.36411]
[1729467536422,1.89113043,2747.0,2746.8,0.36411]
[1729467536627,1.89113043,2747.0,2746.7,0.36411]
[1729467536816,2.84145351,2747.5,2746.7,0.36411]
[1729467536817,2.36662081,2747.5,2746.9,3.2078]
[1729467537022,3.14012081,2747.7,2746.9,3.2078]
[1729467537218,6.74842081,2747.7,2747.4,0.36403]
[1729467537819,6.74842081,2747.7,2747.5,0.36401]
[1729467537820,4.3818,2747.7,2747.5,0.36401]
[1729467538733,4.3818,2747.7,2747.6,0.364]
[1729467538933,3.2078,2747.7,2747.6,0.364]
[1729467539125,3.9952,2748.0,2747.9,0.36396]
[1729467539833,3.2078,2748.0,2747.9,0.36396]
[1729467540630,2.36662081,2748.3,2748.2,0.36392]
[1729467541639,3.17782081,2748.4,2748.2,0.36392]
[1729467542035,3.17782081,2748.4,2747.6,0.91002]
[1729467542338,3.17782081,2748.4,2748.3,0.36391]
[1729467543136,3.17782081,2748.4,2748.2,0.36392]
[1729467544527,0.4179,2748.4,2748.3,0.36391]
[1729467545241,3.2078,2748.9,2748.7,0.36385]
[1729467545539,0.7927,2749.0,2748.9,0.36383]
[1729467545729,41.5927,2749.0,2748.9,0.36383]
[1729467546327,0.7927,2749.0,2748.8,0.36384]
[1729467546737,0.7927,2749.0,2748.4,0.3949]
[1729467546935,3.2078,2748.9,2748.7,0.36385]
[1729467547530,3.2078,2748.9,2748.4,0.3949]
[1729467547934,8.05078496,2749.1,2748.6,3.2078]
[1729467548139,8.05078496,2749.1,2749.0,0.36382]
[1729467548527,8.05078496,2749.1,2749.0,4.00142]
[1729467548733,8.05078496,2749.1,2749.0,7.20922]
[1729467548734,1.773284,2749.1,2749.0,7.20922]
[1729467549033,8.41713145,2750.2,2749.1,3.6376]
[1729467549341,8.41713145,2750.2,2750.0,0.36368]
[1729467549737,8.41713145,2750.2,2750.1,0.36367]
[1729467550134,5.20933145,2750.2,2750.1,0.36367]
[1729467552336,5.20933145,2750.2,2750.1,3.99967]
[1729467552536,3.2078,2750.5,2750.1,3.636]
[1729467552744,3.2078,2750.5,2750.4,0.36363]
[1729467553045,0.17864357,2751.7,2750.2,3.636]
[1729467553046,3.2078,2751.2,2751.1,0.36354]
[1729467553234,4.353584,2751.2,2751.1,0.36354]
[1729467553438,4.353584,2751.2,2750.9,0.36356]
[1729467553747,4.353584,2751.2,2750.6,0.36361]
[1729467553748,1.145784,2751.0,2750.6,0.36361]
[1729467553944,1.145784,2751.0,2750.8,0.36357]
[1729467554641,1.145784,2750.9,2750.7,0.36359]
[1729467555147,1.145784,2750.8,2750.3,4.6278]
[1729467555343,1.145784,2750.8,2750.6,0.3636]
[1729467555543,1.145784,2750.8,2750.7,0.36359]
[1729467558044,0.74344,2751.1,2750.7,1.22811646]
[1729467558251,0.74344,2751.1,2750.8,0.86452646]
[1729467558450,0.36355,2751.0,2750.9,0.86452646]
[1729467558844,0.36355,2751.0,2750.9,0.52314797]
[1729467559045,0.74345,2751.1,2750.9,0.11372782]
[1729467559353,0.74345,2751.1,2751.0,0.11372972]
[1729467559952,0.74345,2751.1,2750.6,0.3636]
[1729467560157,0.74345,2751.1,2750.7,0.36359]
[1729467560158,0.3799,2751.1,2750.7,0.36359]
[1729467560347,0.7941,2751.1,2750.7,0.11373063]
[1729467560949,0.7941,2751.1,2750.8,0.11373063]
[1729467561152,0.7941,2751.1,2750.9,0.1137298]
[1729467561346,0.7941,2751.1,2750.7,0.36359]
[1729467561546,0.36355,2751.0,2750.8,0.11373178]
[1729467561756,3.2078,2750.9,2750.1,0.02913705]
[1729467562055,0.7941,2751.1,2750.2,0.11374229]
[1729467562056,0.36362,2750.5,2750.2,0.11374229]
[1729467562252,3.2078,2750.3,2749.6,8.16617306]
[1729467562556,3.2078,2750.3,2750.0,0.36368]
[1729467562749,44.0078,2750.3,2750.1,0.11375559]
[1729467563054,44.0078,2750.3,2749.9,0.36369]
[1729467563253,3.2078,2750.3,2750.0,0.11375838]
[1729467563553,3.2078,2750.3,2750.1,0.11375838]
[1729467563750,3.2078,2750.3,2749.6,8.16617306]
[1729467563751,44.0078,2750.3,2750.0,0.36368]
[1729467563955,3.2078,2750.3,2750.1,0.11375861]
[1729467564255,3.2078,2750.3,2750.2,0.47741307]
[1729467566146,3.2078,2750.3,2750.1,0.36367]
[1729467566756,1.18364,2750.4,2750.0,0.36368]
[1729467566958,1.18364,2750.4,2750.1,0.11375525]
[1729467567155,1.18364,2750.4,2749.6,3.45304846]
[1729467567357,1.18364,2750.4,2750.0,0.36368]
[1729467567852,1.18364,2750.4,2750.1,0.36367]
[1729467568054,1.18364,2750.4,2749.6,3.45304846]
[1729467568055,0.82,2750.4,2749.6,3.45304846]
[1729467568260,1.18364,2750.4,2750.0,0.36368]
[1729467568652,1.18364,2750.4,2750.1,0.36367]
[1729467570257,1.18364,2750.4,2749.6,3.45304846]
[1729467570258,0.36365,2750.3,2750.0,0.36368]
[1729467570458,0.82,2750.4,2750.0,0.36368]
[1729467570758,1.18364,2750.4,2750.0,0.36368]
[1729467571348,1.18364,2750.4,2750.1,0.36367]
[1729467571553,1.18364,2750.4,2749.6,3.45304846]
[1729467571748,1.18364,2750.4,2750.0,0.36368]
[1729467573262,1.18364,2750.4,2750.1,0.36367]
[1729467573465,1.18364,2750.4,2750.0,0.36367]
[1729467574553,0.36366,2750.3,2750.0,0.36367]
[1729467575061,1.18364,2750.4,2750.1,0.36367]
[1729467575565,0.36365,2750.3,2750.1,0.36367]
[1729467576460,0.4028,2750.2,2749.6,0.24524846]
[1729467576650,0.4028,2750.2,2749.7,0.11375606]
[1729467576849,0.76646,2750.2,2749.5,4.86251295]
[1729467577257,3.2078,2750.1,2749.2,3.2078]
[1729467577451,0.36374,2749.6,2749.3,0.36378]
[1729467577660,1.56805,2749.5,2749.3,0.36378]
[1729467577971,1.2043,2749.5,2749.3,0.36378]
[1729467578262,1.2043,2749.5,2749.4,0.36377]
[1729467578853,0.4144,2749.5,2749.4,4.00057]
[1729467579067,4.36608,2750.1,2749.9,0.3637]
[1729467579359,4.36608,2750.1,2749.2,3.2078]
[1729467579360,0.77809,2750.0,2749.8,0.36371]
[1729467580062,0.77809,2750.0,2749.7,0.36372]
[1729467580261,0.77809,2750.0,2749.3,0.36378]
[1729467580567,0.36371,2749.9,2749.2,3.2078]
[1729467581062,0.36371,2749.9,2749.6,0.36373]
[1729467581463,0.3637,2749.9,2749.6,0.36373]
[1729467581659,0.3637,2749.9,2749.2,3.2078]
[1729467581660,0.36373,2749.7,2749.5,0.36375]
[1729467581964,0.4007,2749.6,2749.4,0.36376]
[1729467582159,0.3808,2749.5,2749.2,3.2078]
[1729467582653,0.3808,2749.5,2749.4,0.36377]
[1729467583056,0.4007,2749.6,2749.4,3.6368]
[1729467583260,3.2078,2749.8,2749.4,3.6368]
[1729467583261,3.2078,2749.8,2749.7,0.36373]
[1729467586564,0.4007,2749.9,2749.3,0.90945]
[1729467586768,3.2078,2749.8,2749.7,0.36373]
[1729467589365,0.4007,2749.9,2749.8,0.36371]
[1729467589662,3.6085,2749.9,2749.8,0.36371]
[1729467591854,3.6085,2749.9,2749.3,0.90945]
[1729467592059,3.6085,2749.9,2749.4,0.40958417]
[1729467592359,3.6085,2749.9,2749.5,0.36375]
[1729467592360,0.36371,2749.8,2749.5,0.36375]
[1729467592663,0.3863,2749.7,2749.5,0.36375]
[1729467593465,0.3863,2749.7,2749.0,4.35338855]
[1729467593658,0.3863,2749.7,2749.6,0.36374]
[1729467599972,0.3863,2749.7,2749.0,4.35338855]
[1729467600170,0.3863,2749.7,2749.1,0.11377948]
[1729467600367,0.75003,2749.7,2749.5,0.36374]
[1729467601771,3.6368,2749.6,2748.6,8.26210375]
[1729467602068,2.35424437,2749.3,2748.2,4.1176]
[1729467602269,0.772,2749.2,2749.0,0.36382]
[1729467602467,0.4142,2749.1,2749.0,0.36382]
[1729467602974,0.4142,2749.1,2748.3,0.90978]
[1729467603169,0.4142,2749.1,2748.9,0.36382]
[1729467603570,3.622,2749.1,2748.9,0.36382]
[1729467604073,3.622,2749.1,2748.3,0.90978]
[1729467604271,3.622,2749.1,2748.4,0.11380647]
[1729467604472,0.3909,2749.0,2748.9,0.36382]
[1729467609076,0.36384,2748.9,2748.3,0.94530375]
[1729467609271,0.36384,2748.9,2748.2,4.62575563]
[1729467609272,0.396,2748.9,2748.4,0.11380779]
[1729467609574,0.396,2748.9,2748.2,4.11759]
[1729467609575,0.396,2748.9,2748.8,0.36384]
[1729467610183,0.75984,2748.9,2748.7,0.36385]
[1729467610372,0.396,2748.9,2748.8,0.36384]
[1729467616687,0.3909,2749.0,2748.9,0.36383]
[1729467617573,0.4082,2749.2,2749.1,0.3638]
[1729467617883,0.4082,2749.2,2749.0,0.36381]
[1729467618179,0.4082,2749.2,2748.2,2.31979]
[1729467618379,3.2078,2749.1,2748.9,0.36383]
[1729467618582,3.2078,2749.1,2749.0,0.36382]
[1729467618785,3.2078,2749.1,2748.9,0.36382]
[1729467619173,3.2078,2749.1,2748.4,0.90975]
[1729467619174,7.20921,2749.1,2748.3,0.36391]
[1729467619375,3.2078,2749.1,2748.7,0.36385]
[1729467619585,5.56204437,2749.1,2748.1,3.2078]
[1729467619788,5.56204437,2749.1,2748.6,0.36386]
[1729467619789,0.36382,2749.0,2748.6,0.36386]
[1729467620087,0.4144,2748.9,2748.7,0.36386]
[1729467620288,0.403,2748.8,2748.7,0.36386]
[1729467620593,0.403,2748.8,2748.3,0.3639]
[1729467620594,0.36386,2748.7,2748.3,0.3639]
[1729467620786,0.36386,2748.7,2748.5,0.36388]
[1729467620787,0.4173,2748.7,2748.5,0.36388]
[1729467621181,0.4173,2748.7,2748.4,0.36389]
[1729467621492,0.4173,2748.7,2748.1,3.2078]
[1729467622182,0.4173,2748.7,2748.4,0.36389]
[1729467622586,0.4173,2748.7,2748.5,0.36387]
[1729467622790,0.4173,2748.7,2748.6,0.36387]
[1729467623187,0.4173,2748.7,2748.1,3.2078]
[1729467623487,0.4173,2748.7,2748.5,0.36387]
[1729467625488,0.4173,2748.7,2748.4,0.36388]
[1729467625688,0.78116,2748.7,2748.4,0.3639]
[1729467626192,0.4173,2748.7,2748.5,0.36388]
[1729467626892,0.4173,2748.7,2748.1,3.2078]
[1729467627192,0.78116,2748.7,2748.4,0.36389]
[1729467627892,0.4173,2748.7,2748.1,3.2078]
[1729467628091,0.78116,2748.7,2748.4,0.3639]
[1729467628885,0.4173,2748.7,2748.1,3.2078]
[1729467629287,0.78117,2748.7,2748.4,0.36389]
[1729467632496,0.78117,2748.7,2748.4,0.3639]
[1729467632895,0.36387,2748.6,2748.4,0.3639]
[1729467633095,0.78117,2748.7,2748.4,0.3639]
[1729467633398,0.4173,2748.7,2747.8,3.45080339]
[1729467633595,0.4173,2748.7,2747.5,3.2078]
[1729467633596,3.2078,2748.5,2747.5,3.2078]
[1729467633797,0.3909,2748.4,2747.7,0.36399]
[1729467633990,3.2078,2748.2,2747.2,0.23943961]
[1729467634198,0.36399,2747.8,2747.4,0.36402]
[1729467634388,1.1933,2747.7,2747.0,3.2078]
[1729467634789,1.1933,2747.7,2747.6,0.364]
[1729467637300,3.2078,2747.9,2747.8,0.36398]
[1729467637491,3.2078,2747.9,2747.7,0.36399]
[1729467637695,3.2078,2747.9,2747.1,0.91018]
[1729467637696,3.57177,2747.9,2747.6,0.364]
[1729467638010,3.57177,2747.9,2747.7,0.36399]
[1729467638011,3.2078,2747.9,2747.7,0.36399]
[1729467638202,3.2078,2747.9,2747.1,0.91018]
[1729467638905,3.57178,2747.9,2747.6,0.364]
[1729467639504,3.57177,2747.9,2747.5,0.364]
[1729467639705,0.36398,2747.8,2747.0,0.23486219]
[1729467639898,0.36398,2747.8,2747.5,0.364]
[1729467641404,3.57177,2747.9,2747.6,0.364]
[1729467643099,3.57177,2747.9,2747.3,0.36404]
[1729467643100,0.364,2747.7,2747.3,0.36404]
[1729467643295,1.2105,2748.1,2746.6,0.91034]
[1729467643296,0.36404,2747.4,2747.0,0.36407]
[1729467643500,3.2078,2747.3,2747.1,0.36406]
[1729467644511,0.36402,2747.5,2747.2,0.36406]
[1729467644697,4.34921,2747.6,2747.3,0.36404]
[1729467644901,0.36402,2747.5,2747.2,0.36405]
[1729467645110,3.9852,2747.6,2746.6,3.44546031]
[1729467645111,0.36403,2747.4,2747.1,0.36406]
[1729467645306,0.36405,2747.3,2747.1,0.36406]
[1729467645506,3.57185,2747.3,2747.0,0.36407]
[1729467646107,0.36406,2747.2,2746.9,0.36409]
[1729467646404,0.3958,2747.2,2746.6,3.2078]
[1729467646602,0.38,2747.1,2746.6,3.2078]
[1729467646797,0.38,2747.1,2746.8,0.3641]
[1729467646798,0.74408,2747.1,2746.8,0.3641]
[1729467647009,0.74408,2747.1,2746.6,3.2078]
[1729467647206,0.38,2747.1,2746.9,0.3641]
[1729467647511,0.74408,2747.1,2746.8,0.3641]
[1729467648608,0.38,2747.1,2746.7,0.36412]
[1729467648811,0.38,2747.1,2746.5,3.2078]
[1729467649000,0.3641,2746.9,2746.5,3.2078]
[1729467649312,0.36409,2747.0,2746.6,0.36413]
[1729467649611,0.91002,2747.6,2746.8,3.2078]
[1729467649612,3.2078,2747.6,2746.8,3.2078]
[1729467649809,3.2078,2747.6,2747.5,0.36402]
[1729467650005,3.2078,2747.6,2747.0,0.36408]
[1729467650206,3.2078,2747.6,2747.3,0.36404]
[1729467650411,3.2078,2747.6,2746.6,2.68144]
[1729467650603,0.36402,2747.5,2747.0,0.36408]
[1729467650807,3.2078,2747.3,2747.0,0.36408]
[1729467651004,0.3787,2747.2,2747.0,0.36408]
[1729467651203,0.3787,2747.2,2746.5,3.2078]
[1729467651204,0.7724,2747.2,2747.1,0.36407]
[1729467651702,0.3787,2747.2,2747.1,0.36407]
[1729467651907,3.2078,2747.6,2747.5,0.36402]
[1729467652206,3.2078,2747.6,2747.4,0.36402]
[1729467652709,3.2078,2747.6,2746.9,0.91023]
[1729467653106,3.2078,2747.6,2747.5,0.36402]
[1729467653306,3.2078,2747.6,2746.9,0.91023]
[1729467653509,3.2078,2747.6,2747.5,0.36402]
[1729467655216,2.35424437,2748.3,2747.5,3.64]
[1729467655510,3.2078,2748.4,2748.3,0.36391]
[1729467656215,0.3851,2748.7,2748.6,0.36387]
[1729467656216,3.5929,2748.7,2748.6,0.36387]
[1729467663523,3.5929,2748.7,2748.5,0.36388]
[1729467663728,0.3882,2748.6,2748.5,0.36388]
[1729467663916,0.3882,2748.6,2748.0,3.2078]